fUSD/lending_fUSD_20260425
["ID","MTS","AMOUNT","RATE_DAILY","PERIOD"]
[421121581,1777095040347,-500.0,0.00013286,2]
[421121582,1777095040356,-500.0,0.00013286,2]
[421121583,1777095040367,-500.0,0.00013286,2]
[421121584,1777095040376,-500.0,0.00013286,2]
[421121585,1777095040386,-500.0,0.00013286,2]
[421121586,1777095040397,-500.0,0.00013286,2]
[421121587,1777095040407,-180.5000262,0.00013286,2]
[421121588,1777095040416,-349.02220761,0.00013286,2]
[421121589,1777095040426,-500.0,0.00013286,2]
[421121590,1777095040435,-500.0,0.00013286,2]
[421121591,1777095040445,-500.0,0.00013286,2]
[421121592,1777095040454,-500.0,0.00013286,2]
[421121593,1777095040464,-264.31299138,0.00013286,2]
[421121594,1777095040473,-500.0,0.00013286,2]
[421121595,1777095040482,-500.0,0.00013286,2]
[421121596,1777095040492,-500.0,0.00013286,2]
[421121597,1777095040501,-500.0,0.00013286,2]
[421121598,1777095040511,-500.0,0.00013286,2]
[421121599,1777095040521,-121.07879049,0.00013286,2]
[421121600,1777095040533,-378.92120951,0.00013286,2]
[421121601,1777095040543,-650.0,0.00013286,2]
[421121602,1777095040552,-186.5620799,0.00013287,2]
[421121603,1777095040562,-151301.49275693,0.00013287,2]
[421121604,1777095040574,-1713.15007597,0.00013287,2]
[421121605,1777095040743,-2510.73356464,0.00013287,2]
[421121617,1777095043086,-661.24,0.00013287,2]
[421121618,1777095043350,-648.92043422,0.00013287,2]
[421121623,1777095046064,-511.63701206,0.00013287,2]
[421121624,1777095046440,-7019.88673891,0.00013287,2]
[421121625,1777095046453,-492.98298303,0.00013287,2]
[421121766,1777095697768,-162.24807931,0.00012914,2]
[421121767,1777095697793,-250.0,0.00012981,2]
[421121768,1777095697817,-126.57911299,0.00013,2]
[421121770,1777096232368,-285.569039,0.0001186,2]
[421121771,1777096232379,-29.01091672,0.0001186,2]
[421121772,1777096232391,-120.98908328,0.0001186,2]
[421121773,1777096232400,-150.0,0.0001186,2]
[421121774,1777096232410,-150.0,0.0001186,2]
[421121775,1777096232420,-27.430961,0.0001186,2]
[421121776,1777096232437,-122.569039,0.0001186,2]
[421121777,1777096232446,-150.0,0.000123,2]
[421121778,1777096232456,-538.82498789,0.00012697,2]
[421121779,1777096232467,-590.0,0.00012712,2]
[421121780,1777096232476,-8.62701804,0.00012739,2]
[421121803,1777096239062,-141.37298196,0.00012739,2]
[421121805,1777096239072,-200.0,0.00012895,2]
[421121807,1777096239082,-200.0,0.00012896,2]
[421121809,1777096239092,-200.0,0.00012896,2]
[421121811,1777096239101,-52.29351771,0.00012935,2]
[421121815,1777096239128,-109.9545616,0.00012935,2]
[421121817,1777096239138,-300.0,0.00012999,2]
[421121819,1777096239147,-300.0,0.00012999,2]
[421121821,1777096239157,-300.0,0.00012999,2]
[421121823,1777096239166,-1200.0,0.00012999,2]
[421121825,1777096239177,-123.42088701,0.00013,2]
[421121828,1777096239186,-405.62,0.00013,2]
[421121830,1777096239196,-2000.0,0.00013,2]
[421121832,1777096239205,-162.82489003,0.00013087,2]
[421121835,1777096239214,-2164.81320489,0.00013087,2]
[421121837,1777096239223,-2500.0,0.00013087,2]
[421121839,1777096239233,-150.0,0.00013178,2]
[421121841,1777096239242,-150.0,0.00013186,2]
[421121843,1777096239252,-1000.0,0.00013186,2]
[421121845,1777096239261,-500.0,0.00013186,2]
[421121847,1777096239270,-500.0,0.00013186,2]
[421121849,1777096239281,-500.0,0.00013186,2]
[421121850,1777096239295,-285.01909396,0.00013186,2]
[421121852,1777096239312,-500.0,0.00013186,2]
[421121854,1777096239329,-500.0,0.00013186,2]
[421121856,1777096239339,-500.0,0.00013186,2]
[421121858,1777096239349,-424.23289359,0.00013186,2]
[421121860,1777096239358,-500.0,0.00013186,2]
[421121862,1777096239367,-244.31554533,0.00013186,2]
[421121864,1777096239376,-153.88534434,0.00013187,2]
[421121866,1777096239386,-2000.0,0.00013187,2]
[421121868,1777096239395,-42558.89301406,0.00013187,2]
[421121886,1777096240549,-878.98730006,0.00013187,2]
[421121887,1777096240625,-3899.45,0.00013187,2]
[421121888,1777096243612,-526490.178,0.00013187,2]
[421121889,1777096243624,-1936.07282185,0.00013187,2]
[421121890,1777096243669,-53031.03505923,0.00013187,2]
[421121891,1777096246338,-886.0392517,0.00013187,2]
[421121892,1777096246393,-9430.35816085,0.00013187,2]
[421121893,1777096246448,-3878.84220872,0.00013187,2]
[421121894,1777096246504,-1971.91147274,0.00013187,2]
[421121895,1777096246560,-15109.96974439,0.00013187,2]
[421121897,1777096408260,-203.291,0.00012923,2]
[421121898,1777096408290,-1664.3,0.00012923,2]
[421121899,1777096408327,-1264.828,0.00012923,2]
[421121900,1777096411164,-162.24807931,0.00012923,2]
[421121901,1777096411193,-200.0,0.00013082,2]
[421121902,1777096411221,-2000.0,0.00013087,2]
[421121903,1777096411344,-275.51384138,0.00013087,2]
[421121904,1777096565674,10000.01,1.31e-05,3]
[421121905,1777096565697,970.14009887,1.31e-05,3]
[421121906,1777096779595,-380.42207151,0.0001,2]
[421121907,1777096781019,-216.626,0.0001,2]
[421121908,1777096783087,-427.974,0.0001,2]
[421121909,1777096785125,-500.0,0.0001,2]
[421121910,1777096786573,-500.00025668,0.0001,2]
[421121911,1777096788923,-200.0,0.0001,2]
[421121912,1777096789951,-500.0,0.0001,2]
[421121913,1777096791305,-180.69662149,0.0001,2]
[421121914,1777096793737,-222.256,0.0001,2]
[421121921,1777096872008,-1200.0,9.999e-05,2]
[421121922,1777096872039,-300.0,9.999e-05,2]
[421121923,1777096872060,-1200.0,0.0001,2]
[421121924,1777096872080,-300.0,0.0001,2]
[421121925,1777096872114,-2000.01,0.0001,2]
[421121926,1777096874926,-5000.01,0.0001,2]
[421121928,1777097043557,-300.0,9.999e-05,2]
[421121929,1777097043868,-3331.03692111,0.0001,2]
[421121930,1777097043907,-886.76979114,0.0001,2]
[421121931,1777097043933,-8226.47041772,0.0001,2]
[421121932,1777097043968,-200.0,0.00010959,2]
[421121933,1777097043999,-336.0,0.00010999,2]
[421121934,1777097044030,-2500.0,0.00012983,2]
[421121935,1777097044061,-162.24807931,0.00013015,2]
[421121936,1777097044092,-171.02088173,0.00013082,2]
[421121937,1777097044123,-500.0,0.00013082,2]
[421121938,1777097044151,-500.0,0.00013082,2]
[421121939,1777097044182,-500.0,0.00013082,2]
[421121940,1777097044727,-261.47207792,0.00013082,2]
[421121941,1777097045345,-256.65957978,0.00013082,2]
[421121942,1777097045374,-500.0,0.00013082,2]
[421121943,1777097045409,-500.0,0.00013082,2]
[421121944,1777097045439,-500.0,0.00013082,2]
[421121945,1777097045468,-535.36880113,0.00013082,2]
[421121946,1777097045496,-507.60294501,0.00013082,2]
[421121947,1777097045530,-500.0,0.00013082,2]
[421121948,1777097045560,-500.0,0.00013082,2]
[421121949,1777097045590,-611.08821602,0.00013082,2]
[421121950,1777097045618,-500.0,0.00013082,2]
[421121951,1777097045726,-181.9110341,0.00013082,2]
[421121952,1777097045754,-500.0,0.00013082,2]
[421121953,1777097045791,-500.0,0.00013082,2]
[421121954,1777097045820,-500.0,0.00013082,2]
[421121955,1777097045851,-500.0,0.00013082,2]
[421121956,1777097045886,-500.0,0.00013082,2]
[421121957,1777097045914,-188.48884834,0.00013082,2]
[421121958,1777097045950,-500.0,0.00013082,2]
[421121959,1777097045980,-500.0,0.00013082,2]
[421121960,1777097046011,-500.0,0.00013082,2]
[421121961,1777097046047,-500.0,0.00013082,2]
[421121962,1777097046138,-500.0,0.00013082,2]
[421121963,1777097046175,-500.0,0.00013082,2]
[421121964,1777097046211,-500.0,0.00013082,2]
[421121965,1777097046243,-297.67615023,0.00013082,2]
[421121966,1777097046278,-500.0,0.00013082,2]
[421121967,1777097046311,-500.0,0.00013082,2]
[421121968,1777097046346,-500.0,0.00013082,2]
[421121969,1777097046380,-500.0,0.00013082,2]
[421121970,1777097046417,-500.0,0.00013082,2]
[421121971,1777097046451,-500.0,0.00013082,2]
[421121972,1777097046564,-500.0,0.00013082,2]
[421121973,1777097046593,-499.99999999,0.00013082,2]
[421121974,1777097046624,-500.0,0.00013082,2]
[421121975,1777097046652,-500.0,0.00013082,2]
[421121976,1777097046681,-399.51336578,0.00013082,2]
[421121977,1777097046711,-1274.0,0.00013083,5]
[421121978,1777097049082,-3500.01,0.00013083,2]
[421121979,1777097049951,-5000.01,0.00013083,2]
[421121980,1777097053075,-5000.01,0.00013083,2]
[421121981,1777097056008,-5000.01,0.00013083,2]
[421121982,1777097060175,-5000.01,0.00013083,2]
[421121983,1777097062055,-150.0,0.00013082,2]
[421121984,1777097062098,-4700.01,0.00013083,2]
[421121987,1777097431548,-162.24807931,0.00012959,2]
[421121988,1777097431559,-655.54780661,0.00012983,2]
[421121989,1777097431570,-622.24371639,0.00012983,2]
[421121990,1777097431604,-616.42003134,0.00012983,2]
[421121991,1777097431613,-783.8633002,0.00012983,2]
[421121992,1777097431625,-1074.01209574,0.00012983,2]
[421121993,1777097431657,-642.12460406,0.00012983,2]
[421121994,1777097431666,-250.0,0.00013,2]
[421121995,1777097431676,-151.0,0.00013075,2]
[421121996,1777097431686,-151.0,0.00013075,2]
[421121997,1777097431696,-151.0,0.00013075,2]
[421121998,1777097431706,-151.0,0.00013075,2]
[421121999,1777097431715,-134.75208777,0.00013075,2]
[421122000,1777097431728,-16.24791223,0.00013075,2]
[421122001,1777097431737,-151.0,0.00013075,2]
[421122002,1777097431747,-151.0,0.00013075,2]
[421122003,1777097431756,-151.0,0.00013075,2]
[421122004,1777097431766,-151.0,0.00013075,2]
[421122005,1777097431776,-151.0,0.00013075,2]
[421122006,1777097431785,-151.0,0.00013075,2]
[421122007,1777097431795,-151.0,0.00013075,2]
[421122008,1777097431804,-150.0,0.00013081,2]
[421122009,1777097431814,-10022.9297389,0.00013082,2]
[421122011,1777097431826,-11698.0093144,0.00013082,2]
[421122013,1777097431836,-9973.76050289,0.00013082,2]
[421122015,1777097431848,-3732.06094082,0.00013082,2]
[421122017,1777097431863,-278.617552,0.00013082,2]
[421122172,1777097439801,-11389.78747162,0.00013082,2]
[421122508,1777097442958,-271.96277641,0.00013082,2]
[421122510,1777097442971,-95188.49967966,0.00013082,2]
[421122512,1777097442981,-500.0,0.00013082,2]
[421122514,1777097442992,-484.23990062,0.00013082,2]
[421122517,1777097443002,-500.0,0.00013082,2]
[421122519,1777097443014,-404.87437625,0.00013082,2]
[421122521,1777097443025,-337.26320013,0.00013082,2]
[421122523,1777097443035,-409.83209426,0.00013082,2]
[421122525,1777097443045,-500.0,0.00013083,2]
[421122527,1777097443055,-127070.58887685,0.00013083,2]
[421122613,1777097445963,-13971.08314113,0.00013083,2]
[421122709,1777097509384,-202.536,0.00012821,2]
[421122710,1777097509415,-2874.615,0.00012821,2]
[421122711,1777097509446,-1065.6776,0.00012983,2]
[421122712,1777097509475,-151.0,0.0001308,2]
[421122713,1777097509504,-217.60233168,0.00013082,2]
[421122714,1777097509539,-202.32384977,0.00013082,2]
[421122715,1777097509568,-250.0,0.00013083,2]
[421122716,1777097509697,-151.0,0.00013083,2]
[421122717,1777097509728,-151.0,0.00013083,2]
[421122718,1777097509757,-151.0,0.00013083,2]
[421122719,1777097511712,-5000.01,0.00013083,2]
[421122720,1777097514723,-5000.01,0.00013083,2]
[421122721,1777097521889,150.0,0.00013082,2]
[421122722,1777097523444,-5000.01,0.00013083,2]
[421122723,1777097523782,-5000.01,0.00013083,2]
[421122724,1777097526913,-5000.01,0.00013083,2]
[421122725,1777097529878,-162.24807931,0.00013083,2]
[421122726,1777097531127,-151.0,0.00013075,2]
[421122727,1777097531137,-4524.51384138,0.00013083,2]
[421122728,1777097986204,-500.0,0.00012859,2]
[421122729,1777097986237,-162.24807931,0.00012956,2]
[421122730,1777097986269,-200.0,0.00012978,2]
[421122731,1777097986354,-8125.51384138,0.0001298,2]
[421122732,1777097986389,-10000.01,0.0001298,2]
[421122733,1777097986480,-10000.01,0.0001298,2]
[421122734,1777097986602,-10000.01,0.0001298,2]
[421122735,1777097986766,-10000.01,0.0001298,2]
[421122736,1777097986881,-10000.01,0.0001298,2]
[421122737,1777097986980,-10000.01,0.0001298,2]
[421122738,1777097987119,-10000.01,0.0001298,2]
[421122739,1777097987231,-10000.01,0.0001298,2]
[421122740,1777097987339,-10000.01,0.0001298,2]
[421122741,1777097987433,-10000.01,0.0001298,2]
[421122742,1777097987541,-10000.01,0.0001298,2]
[421122743,1777097989033,-10000.01,0.0001298,2]
[421122744,1777097989813,-5000.01,0.0001298,2]
[421122745,1777097992659,-5000.01,0.0001298,2]
[421122753,1777098281862,10000.0,0.000165,120]
[421122754,1777098289707,10000.0,0.000165,120]
[421122755,1777098445669,-406.86,0.000105,2]
[421122756,1777098445703,-150.0,0.00011663,2]
[421122757,1777098445733,-2299.692,0.0001272,2]
[421122758,1777098445768,-162.028,0.0001272,2]
[421122759,1777098445798,-578.20924308,0.0001272,2]
[421122760,1777098445829,-201.93286099,0.0001272,2]
[421122761,1777098445860,-155.55325559,0.00012829,2]
[421122762,1777098445890,-200.0,0.00012876,2]
[421122763,1777098445919,-162.24807931,0.00012938,2]
[421122764,1777098445950,-166.96312206,0.00012969,2]
[421122765,1777098446131,-1033.03687794,0.00012969,2]
[421122766,1777098446163,-2173.64231718,0.0001297,2]
[421122767,1777098446194,-200.0,0.00012972,2]
[421122768,1777098446225,-1377.42282659,0.00012972,2]
[421122769,1777098446354,-695.39793187,0.00012972,2]
[421122770,1777098446386,-151.0,0.00012972,2]
[421122771,1777098446459,-788.66201015,0.00012972,2]
[421122772,1777098446582,-1577.3240203,0.00012972,2]
[421122773,1777098446716,-3154.6480406,0.00012972,2]
[421122774,1777098446808,-3690.7139188,0.00012972,2]
[421122775,1777098446842,-151.0,0.00012972,2]
[421122776,1777098446876,-151.0,0.00012972,2]
[421122777,1777098446910,-151.0,0.00012972,2]
[421122778,1777098446945,-151.0,0.00012972,2]
[421122779,1777098446980,-151.0,0.00012972,2]
[421122780,1777098447016,-151.0,0.00012972,2]
[421122781,1777098447048,-151.0,0.00012972,2]
[421122782,1777098447081,-151.0,0.00012972,2]
[421122783,1777098447114,-51.5821624,0.00012972,2]
[421122784,1777098447298,-99.4178376,0.00012972,2]
[421122785,1777098447308,-151.0,0.00012972,2]
[421122786,1777098447318,-151.0,0.00012972,2]
[421122787,1777098447329,-151.0,0.00012972,2]
[421122788,1777098447339,-155.77960159,0.00012972,2]
[421122789,1777098447349,-152.0,0.00012972,2]
[421122790,1777098447360,-152.56372789,0.00012972,2]
[421122791,1777098447370,-201.93286099,0.00012972,2]
[421122792,1777098447381,-743.50770149,0.00012972,2]
[421122793,1777098447391,-300.0,0.00012978,2]
[421122794,1777098447402,-220.63715739,0.00012979,2]
[421122795,1777098447412,-500.0,0.00012979,2]
[421122796,1777098447423,-334.38738585,0.00012979,2]
[421122797,1777098447432,-5199.24853558,0.0001298,2]
[421122798,1777098447460,-8422.6859797,0.0001298,2]
[421122799,1777098447505,-6845.3619594,0.0001298,2]
[421122800,1777098447525,-3690.7139188,0.0001298,2]
[421122801,1777098447553,-151.0,0.0001298,2]
[421122802,1777098447582,-151.0,0.0001298,2]
[421122803,1777098447615,-151.0,0.0001298,2]
[421122804,1777098447630,-151.0,0.0001298,2]
[421122805,1777098447659,-151.0,0.0001298,2]
[421122806,1777098447678,-151.0,0.0001298,2]
[421122807,1777098447692,-151.0,0.0001298,2]
[421122808,1777098447707,-151.0,0.0001298,2]
[421122809,1777098447735,-151.0,0.0001298,2]
[421122810,1777098447782,-10000.01,0.0001298,2]
[421122811,1777098447798,-10000.01,0.0001298,2]
[421122812,1777098448598,-5000.01,0.0001298,2]
[421122813,1777098448613,-10000.01,0.0001298,2]
[421122814,1777098448716,-10000.01,0.0001298,2]
[421122815,1777098451559,-5000.01,0.0001298,2]
[421122816,1777098451791,-10000.01,0.0001298,2]
[421122817,1777098451905,-10000.01,0.0001298,2]
[421122818,1777098452013,-10000.01,0.0001298,2]
[421122819,1777098452139,-10000.01,0.0001298,2]
[421122820,1777098452269,-10000.01,0.0001298,2]
[421122821,1777098452382,-10000.01,0.0001298,2]
[421122822,1777098452475,-10000.01,0.0001298,2]
[421122823,1777098631831,-162.24807931,0.00012874,2]
[421122824,1777098631842,-3354.48793945,0.0001288,2]
[421122825,1777098631856,-1645.51206055,0.0001288,2]
[421122826,1777098631866,-1657.43511003,0.00012883,2]
[421122827,1777098631876,-6583.51926269,0.00012972,2]
[421122828,1777098631886,-174.61919141,0.00012972,2]
[421122829,1777098631896,-302.48171361,0.00012972,2]
[421122830,1777098631908,-464.50893001,0.00012972,2]
[421122831,1777098631918,-287.07821005,0.00012972,2]
[421122832,1777098631927,-210.62726821,0.00012972,2]
[421122833,1777098631937,-584.0711701,0.00012979,2]
[421122834,1777098631948,-154.44601017,0.00012979,2]
[421122835,1777098631957,-292791.26743706,0.0001298,2]
[421122836,1777098631969,-797.78372032,0.0001298,2]
[421122837,1777098631981,-3101.556,0.0001298,2]
[421122838,1777098631997,-6300.59580484,0.0001298,2]
[421122839,1777098632051,-18175.42216764,0.0001298,2]
[421122841,1777098632107,-1781.4347487,0.0001298,2]
[421122843,1777098632120,-618.31401655,0.0001298,2]
[421122874,1777098638724,-1312.0539,0.0001288,2]
[421122875,1777098638832,-600.0,0.0001288,2]
[421122876,1777098638889,-3087.9461,0.0001288,2]
[421122877,1777098638898,-223647.09264146,0.0001298,2]
[421122882,1777098640384,-74993.82917741,0.0001298,2]
[421122883,1777098640440,-1800.02694516,0.0001298,2]
[421122884,1777098640499,-376.58147657,0.0001298,2]
[421122890,1777098643265,-37224.45093944,0.0001298,2]
[421122891,1777098643320,-900.0,0.0001298,2]
[421122920,1777098646019,-12326.02738683,0.0001298,2]
[421122921,1777098646340,-981.16768508,0.0001298,2]
[421122922,1777098646396,-7176.19029309,0.0001298,2]
[421122923,1777098646769,-13630.56922428,0.0001298,2]
[421122924,1777098646824,-39092.44072773,0.0001298,2]
[421122926,1777098646880,-4441.45019744,0.0001298,2]
[421122947,1777098909462,-200.0,0.00012876,2]
[421122948,1777098925396,-10000.01,0.00012879,2]
[421122949,1777098925591,-10000.01,0.00012879,2]
[421122950,1777098925711,-10000.01,0.00012879,2]
[421122951,1777098925828,-10000.01,0.00012879,2]
[421122952,1777098925932,-10000.01,0.00012879,2]
[421122953,1777098928370,-10000.01,0.00012879,2]
[421122954,1777099376246,-1839.754,0.00012621,2]
[421122955,1777099376290,-162.029,0.00012621,2]
[421122956,1777099376333,-275.5138,0.00012779,2]
[421122957,1777099376432,-445.4164,0.00012779,2]
[421122958,1777099379147,-2342.25510658,0.00012779,2]
[421122959,1777099379181,-315.49978684,0.00012779,2]
[421122960,1777099382236,-1450.25572125,0.00012779,2]
[421122961,1777099390756,-200.0,0.00012871,2]
[421122962,1777099390787,-717.3214852,0.00012871,2]
[421122963,1777099390826,-8165.3670296,0.00012871,2]
[421122964,1777099391001,-151.0,0.00012871,2]
[421122965,1777099391031,-1328.27659266,0.00012871,2]
[421122966,1777099391062,-670.58624095,0.00012871,2]
[421122967,1777099391094,-151.0,0.00012871,2]
[421122968,1777099391123,-151.0,0.00012871,2]
[421122969,1777099391154,-151.0,0.00012871,2]
[421122970,1777099391184,-151.0,0.00012871,2]
[421122971,1777099391214,-151.0,0.00012871,2]
[421122972,1777099391244,-151.0,0.00012871,2]
[421122973,1777099391275,-151.0,0.00012871,2]
[421122974,1777099391306,-151.0,0.00012871,2]
[421122975,1777099391338,-151.0,0.00012871,2]
[421122976,1777099391370,-151.0,0.00012871,2]
[421122977,1777099391402,-151.0,0.00012871,2]
[421122978,1777099391433,-151.0,0.00012871,2]
[421122979,1777099391465,-151.0,0.00012871,2]
[421122980,1777099391495,-152.0,0.00012871,2]
[421122981,1777099391524,-195.93456364,0.00012871,2]
[421122982,1777099391554,-194.72792766,0.00012871,2]
[421122983,1777099391587,-160.73813854,0.00012871,2]
[421122984,1777099391692,-747.37233328,0.00012871,2]
[421122985,1777099391722,-174.61919141,0.00012871,2]
[421122986,1777099391752,-644.79446245,0.00012871,2]
[421122987,1777099391780,-194.72792766,0.00012871,2]
[421122988,1777099391810,-250.0,0.00012874,2]
[421122989,1777099391839,-150.0,0.00012877,2]
[421122990,1777099391869,-500.0,0.00012878,2]
[421122991,1777099391899,-178.70382881,0.00012878,2]
[421122992,1777099391927,-318.0889659,0.00012878,2]
[421122993,1777099391955,-500.0,0.00012878,2]
[421122994,1777099391988,-500.0,0.00012878,2]
[421122995,1777099392024,-500.0,0.00012878,2]
[421122996,1777099392059,-183.39658098,0.00012878,2]
[421122997,1777099392147,-316.60341902,0.00012878,2]
[421122998,1777099392176,-311.51115165,0.00012878,2]
[421122999,1777099392212,-500.0,0.00012878,2]
[421123000,1777099392248,-500.0,0.00012878,2]
[421123001,1777099392284,-500.0,0.00012878,2]
[421123002,1777099392629,-500.0,0.00012878,2]
[421123003,1777099392667,-500.0,0.00012878,2]
[421123004,1777099392704,-452.92917511,0.00012878,2]
[421123005,1777099392734,-331.11,0.00012878,2]
[421123006,1777099392763,-1087.74620711,0.00012878,3]
[421123007,1777099393750,-784.03917511,0.00012878,3]
[421123008,1777099393768,-0.21009422,0.00012878,3]
[421123009,1777099393908,-303.49693778,0.00012878,3]
[421123010,1777099393939,-1087.74620711,0.00012878,3]
[421123011,1777099393968,-578.20924308,0.00012878,2]
[421123012,1777099393997,-194.72792766,0.00012878,2]
[421123013,1777099400249,-5000.01,0.00012879,2]
[421123014,1777099400495,200.0,0.00012677,2]
[421123015,1777099403259,-5000.01,0.00012879,2]
[421123016,1777099411518,-5000.01,0.00012879,2]
[421123017,1777099412342,-5000.01,0.00012879,2]
[421123018,1777099523501,-162.24807931,0.000105,2]
[421123019,1777099567966,200.0,0.00012878,120]
[421123022,1777099832208,-196.94192069,0.000105,2]
[421123023,1777099832219,-301.9519539,0.0001155,2]
[421123026,1777099838538,-267.29626824,0.0001155,2]
[421123027,1777099838645,-365.2335346,0.0001155,2]
[421123028,1777099838655,-148.44621795,0.0001155,2]
[421123049,1777099840485,-45.17004367,0.0001155,2]
[421123050,1777099840495,-250.0,0.0001155,2]
[421123051,1777099840504,-200.0,0.000127,2]
[421123052,1777099840513,-5000.0,0.00012779,2]
[421123053,1777099840523,-15304.58496533,0.00012867,2]
[421123054,1777099840905,-4033.83217871,0.00012867,2]
[421123059,1777099848395,-152.0,0.00012829,7]
[421123060,1777099848406,-15716.64290021,0.00012867,2]
[421123061,1777099848449,-888.0,0.00012867,2]
[421123065,1777099848771,-380.67368216,0.00012867,2]
[421123066,1777099848784,-17836.35132159,0.00012867,2]
[421123067,1777099848824,-923.0,0.00012867,2]
[421123068,1777099848879,-616.0,0.00012867,2]
[421123071,1777099867669,-5000.01,0.0001286,2]
[421123074,1777099870796,-1471.30701872,0.0001286,2]
[421123075,1777099870831,-152.0,0.00012862,7]
[421123076,1777099870861,-300.0,0.00012866,2]
[421123077,1777099871089,-1153.39596256,0.00012767,2]
[421123078,1777099871370,-9800.01,0.00012767,2]
[421123079,1777099871540,-10000.01,0.00012767,2]
[421123080,1777099871645,-10000.01,0.00012767,2]
[421123081,1777099873840,-10000.01,0.00012767,2]
[421123082,1777100329268,-359.6111519,0.000126,2]
[421123083,1777100329298,-1471.803,0.00012621,2]
[421123084,1777100329327,-162.029,0.00012621,2]
[421123085,1777100329356,-434.91445312,0.00012621,2]
[421123086,1777100329426,-143.29478996,0.00012621,2]
[421123087,1777100332181,-219.46339913,0.00012621,2]
[421123088,1777100332227,-200.0,0.00012665,2]
[421123089,1777100332258,-1268.97375612,0.00012679,2]
[421123090,1777100332291,-423.1356895,0.00012765,2]
[421123091,1777100332369,-776.8643105,0.00012765,2]
[421123092,1777100344052,-1093.91752428,0.00012766,3]
[421123093,1777100344084,-1093.91752428,0.00012766,3]
[421123094,1777100344115,-483.70382881,0.00012766,2]
[421123095,1777100344153,-525.5730689,0.00012766,2]
[421123096,1777100351346,-5000.01,0.00012767,2]
[421123097,1777100354271,-5000.01,0.00012767,2]
[421123098,1777100357846,-5000.01,0.00012767,2]
[421123099,1777100360278,-5000.01,0.00012767,2]
[421123103,1777100658281,-1177.442,0.00012512,2]
[421123104,1777100658312,-162.029,0.00012512,2]
[421123105,1777100658342,-200.0,0.00012665,2]
[421123106,1777100658372,-2000.0,0.00012667,2]
[421123107,1777100658404,-1110.35203657,0.00012679,2]
[421123108,1777100658435,-174.61919141,0.00012759,2]
[421123109,1777100658585,-670.58624095,0.00012759,2]
[421123110,1777100658653,-351.12554404,0.00012759,2]
[421123111,1777100658668,-8531.56297076,0.00012759,2]
[421123112,1777100658678,-127.27454734,0.00012759,2]
[421123113,1777100662451,-72.72545266,0.00012759,2]
[421123114,1777100662483,-1328.27659266,0.00012759,2]
[421123115,1777100662524,-194.72792766,0.00012759,2]
[421123116,1777100662557,-151.0,0.00012759,2]
[421123117,1777100662592,-151.0,0.00012759,2]
[421123118,1777100662625,-151.0,0.00012759,2]
[421123119,1777100662659,-151.0,0.00012759,2]
[421123120,1777100662694,-151.0,0.00012759,2]
[421123121,1777100662727,-151.0,0.00012759,2]
[421123122,1777100662760,-151.0,0.00012759,2]
[421123123,1777100662794,-151.0,0.00012759,2]
[421123124,1777100662828,-151.0,0.00012759,2]
[421123125,1777100662861,-151.0,0.00012759,2]
[421123126,1777100662894,-151.0,0.00012759,2]
[421123127,1777100662928,-151.0,0.00012759,2]
[421123128,1777100662961,-151.0,0.00012759,2]
[421123129,1777100662996,-151.0,0.00012759,2]
[421123130,1777100674514,-578.20924308,0.00012766,2]
[421123131,1777100674544,-338.59268016,0.00012766,2]
[421123132,1777100680473,-500.0,0.00012767,2]
[421123133,1777100680504,-500.0,0.00012767,2]
[421123134,1777100680533,-500.0,0.00012767,2]
[421123135,1777100680563,-500.0,0.00012767,2]
[421123136,1777100680592,-500.0,0.00012767,2]
[421123137,1777100681035,-428.21423266,0.00012767,2]